bitfinex-derivatives/quotes_ETHF0:USTF0_20250209
["timestamp","ask_amount","ask_price","bid_price","bid_amount"]
[1739124187283,4.60767612,2642.6,2642.2,1.7392]
[1739124192879,2.91967612,2642.6,2642.2,1.7392]
[1739124193084,2.91967612,2642.6,2642.4,3.38157793]
[1739124196280,2.91967612,2642.6,2642.2,1.7392]
[1739124200691,2.91967612,2642.6,2642.4,3.38157793]
[1739124202590,4.34747111,2642.5,2641.5,3.38157793]
[1739124202896,3.2078,2642.2,2641.5,3.38157793]
[1739124203988,3.2078,2641.9,2641.5,3.38157793]
[1739124204292,1.7891,2641.8,2641.5,3.38157793]
[1739124211203,0.9102,2641.7,2641.5,3.38157793]
[1739124211504,0.9102,2641.7,2641.2,3.38157793]
[1739124211697,0.9102,2641.7,2641.2,5.19797793]
[1739124216703,3.8242,2641.7,2641.2,5.19797793]
[1739124220913,3.2078,2641.5,2641.2,5.19797793]
[1739124221117,3.8242,2641.7,2641.2,5.19797793]
[1739124230023,3.2078,2641.5,2641.0,0.00567612]
[1739124230215,3.2078,2641.2,2641.0,0.00567612]
[1739124230412,0.8931,2641.1,2641.0,0.00567612]
[1739124230620,1.831,2641.1,2641.0,0.00567612]
[1739124234523,4.745,2641.1,2641.0,0.00567612]
[1739124234825,2.914,2641.1,2641.0,0.00567612]
[1739124240331,1.687,2641.2,2641.0,0.00567612]
[1739124244329,2.914,2641.5,2641.0,3.21347612]
[1739124244535,2.914,2641.5,2641.2,3.38157793]
[1739124244834,2.914,2641.5,2641.3,0.8943]
[1739124245037,2.914,2641.5,2641.3,1.8327]
[1739124246433,0.8757,2641.7,2641.3,1.8327]
[1739124246636,1.687,2642.0,2641.5,3.38157793]
[1739124246932,5.9131,2642.2,2641.8,3.38157793]
[1739124247236,3.2078,2642.2,2641.9,1.8328]
[1739124247830,0.8808,2642.5,2642.1,6.58937793]
[1739124248227,1.69267612,2642.6,2642.1,6.58937793]
[1739124248832,2.64177612,2642.6,2642.1,3.38157793]
[1739124249032,2.64177612,2642.6,2641.9,2.7682]
[1739124249234,4.20920929,2642.5,2641.9,1.8328]
[1739124249838,7.41700929,2642.5,2641.9,1.8328]
[1739124251740,7.41700929,2642.5,2642.1,3.38157793]
[1739124251943,3.2078,2642.5,2642.1,3.38157793]
[1739124255639,0.95477612,2642.6,2642.1,3.38157793]
[1739124255836,4.16257612,2642.6,2642.1,3.38157793]
[1739124256346,0.95477612,2642.6,2642.1,3.38157793]
[1739124256844,0.00567612,2642.6,2642.4,3.38157793]
[1739124257048,0.00567612,2642.6,2642.5,1.7524]
[1739124259050,3.2078,2643.2,2642.5,1.7524]
[1739124259248,3.2078,2643.2,2642.9,3.38157793]
[1739124259455,3.2078,2643.2,2643.0,0.893]
[1739124259660,6.3684,2643.6,2643.0,0.893]
[1739124259856,6.3684,2643.6,2643.3,3.38157793]
[1739124260148,3.4544,2643.6,2643.3,3.38157793]
[1739124260354,1.7684,2643.6,2643.3,3.38157793]
[1739124261360,3.2078,2643.4,2643.2,0.00567612]
[1739124262153,4.07950451,2643.3,2643.2,0.00567612]
[1739124264660,1.686,2643.3,2643.2,0.00567612]
[1739124267758,8.86859459,2643.3,2643.2,0.00567612]
[1739124268160,8.93214926,2643.3,2643.2,0.00567612]
[1739124268553,14.93214926,2643.3,2643.2,0.00567612]
[1739124268761,15.46165926,2643.3,2642.5,0.8724]
[1739124268959,3.2078,2643.0,2642.5,0.8724]
[1739124269159,0.8963,2642.9,2642.5,0.8724]
[1739124269463,0.8963,2642.9,2642.4,3.38157793]
[1739124269760,0.8963,2642.9,2642.4,3.38725405]
[1739124270461,0.8963,2642.9,2642.7,3.38157793]
[1739124270665,0.9329,2643.2,2642.7,3.38157793]
[1739124270966,1.8829,2643.2,2642.8,1.7757]
[1739124271968,0.95,2643.2,2642.8,1.7757]
[1739124272264,5.99472056,2643.1,2642.4,3.38725405]
[1739124272658,3.2078,2643.0,2642.4,3.38725405]
[1739124273053,6.1218,2643.0,2642.4,3.38725405]
[1739124273865,6.1218,2643.0,2642.7,3.38157793]
[1739124273866,2.914,2643.0,2642.7,3.38157793]
[1739124274163,2.914,2643.0,2642.8,1.8105]
[1739124279062,0.9461,2643.1,2642.8,1.8105]
[1739124281361,0.9461,2643.1,2642.4,0.00567612]
[1739124281562,8.93487962,2643.0,2642.4,0.00567612]
[1739124281868,8.40530962,2643.0,2642.4,0.00567612]
[1739124282070,0.06359341,2642.9,2642.4,0.00567612]
[1739124282266,3.2078,2642.6,2642.4,0.00567612]
[1739124282773,0.8591,2642.5,2642.4,0.00567612]
[1739124282970,1.7361,2642.5,2642.4,0.00567612]
[1739124283371,2.6276,2642.5,2642.4,0.00567612]
[1739124283574,3.22633525,2642.5,2642.4,0.00567612]
[1739124286379,2.6276,2642.5,2642.4,0.00567612]
[1739124287573,9.8399266,2642.5,2642.4,0.00567612]
[1739124287776,10.50148206,2642.5,2641.9,1.8318]
[1739124287972,3.2078,2642.3,2641.9,1.8318]
[1739124288176,3.2078,2642.3,2641.9,0.9031]
[1739124288969,3.2078,2642.3,2641.8,3.38725405]
[1739124288970,0.52973,2642.2,2641.8,3.38725405]
[1739124289170,3.2078,2642.0,2641.8,0.00567612]
[1739124289482,2.7426,2641.9,2641.8,0.00567612]
[1739124289676,6.91940152,2641.9,2641.8,0.00567612]
[1739124292383,6.00520152,2641.9,2641.8,0.00567612]
[1739124294375,3.2078,2642.0,2641.8,0.00567612]
[1739124294775,4.24282633,2641.9,2641.8,0.00567612]
[1739124295081,4.30643551,2641.9,2641.8,0.00567612]
[1739124295276,7.22043521,2641.9,2641.8,0.00567612]
[1739124296375,7.22043521,2641.9,2641.2,3.38157793]
[1739124296581,3.2078,2641.5,2641.2,3.38157793]
[1739124296784,0.913,2641.4,2641.2,3.38157793]
[1739124298977,0.913,2641.4,2641.1,3.2078]
[1739124300277,0.913,2641.4,2641.0,0.00567612]
[1739124301584,4.8928,2641.5,2641.0,0.00567612]
[1739124303086,4.22677287,2641.4,2641.0,0.00567612]
[1739124303292,0.52995,2641.1,2641.0,0.00567612]
[1739124303484,3.2078,2641.2,2641.0,0.00567612]
[1739124303783,6.17900699,2641.1,2641.0,0.00567612]
[1739124304589,6.70895699,2641.1,2641.0,0.00567612]
[1739124305895,6.17900699,2641.1,2641.0,0.00567612]
[1739124307685,12.70895699,2641.1,2641.0,0.00567612]
[1739124307887,0.53,2640.9,2640.1,0.8964]
[1739124308190,0.53,2640.9,2640.0,0.8741]
[1739124308191,3.2078,2640.5,2640.0,0.8741]
[1739124308395,1.7547,2640.4,2640.0,0.8741]
[1739124308589,5.99444327,2640.4,2640.0,0.8741]
[1739124309789,8.90844327,2640.4,2640.0,0.8741]
[1739124309990,8.90844327,2640.4,2639.8,0.8835]
[1739124310190,8.90844327,2640.4,2639.8,1.7602]
[1739124310191,3.2078,2640.2,2639.8,1.7602]
[1739124310387,7.8078,2640.2,2639.8,1.7602]
[1739124310582,3.9709263,2640.1,2639.8,1.7602]
[1739124310986,4.8682263,2640.1,2639.8,1.7602]
[1739124312490,7.7822263,2640.1,2639.5,0.9206]
[1739124312795,3.2078,2639.9,2639.2,1.8965]
[1739124312993,1.7518,2639.8,2639.2,1.8965]
[1739124313193,6.04201772,2639.8,2639.2,1.8965]
[1739124315190,4.29021772,2639.8,2639.2,1.8965]
[1739124315390,4.29021772,2639.8,2639.4,3.38157793]
[1739124317297,4.29021772,2639.8,2639.2,1.8965]
[1739124317599,1.7525,2639.7,2639.2,1.8965]
[1739124317797,2.5453,2639.6,2639.2,1.8965]
[1739124317997,6.91594127,2639.6,2639.2,1.8965]
[1739124321395,3.2078,2640.0,2639.4,3.38157793]
[1739124321587,1.686,2639.9,2639.7,3.38157793]
[1739124321795,3.2078,2640.0,2639.8,1.8045]
[1739124322099,4.10819399,2639.9,2639.8,1.8045]
[1739124322296,4.10819399,2639.9,2639.5,0.8918]
[1739124322297,5.93639399,2639.9,2639.5,0.8918]
[1739124322598,5.93639399,2639.9,2639.5,2.6963]
[1739124324097,5.93639399,2639.9,2639.1,3.38157793]
[1739124324098,3.2078,2639.7,2639.1,3.38157793]
[1739124324301,3.2078,2639.7,2639.2,1.8831]
[1739124324605,5.20523789,2639.6,2639.2,1.8831]
[1739124324901,1.686,2639.5,2639.2,1.8831]
[1739124325291,4.30933789,2639.4,2639.2,1.8831]
[1739124331310,7.51713789,2639.4,2638.8,6.58937793]
[1739124331608,3.2078,2639.1,2638.8,1.8404]
[1739124331810,0.9242,2639.0,2638.8,0.9491]
[1739124332005,6.17508011,2639.0,2638.5,6.58937793]
[1739124332206,1.686,2638.9,2638.5,3.2078]
[1739124332407,0.9398,2638.8,2638.5,3.2078]
[1739124332609,5.03511884,2638.8,2638.5,3.2078]
[1739124333013,3.2078,2638.7,2638.2,3.38157793]
[1739124333405,4.09531884,2638.6,2638.2,3.38157793]
[1739124333806,3.2078,2638.4,2638.0,0.9491]
[1739124334007,3.2078,2638.1,2637.2,3.38157793]
[1739124334214,3.2078,2637.6,2637.2,3.38157793]
[1739124334714,4.09531884,2637.5,2637.2,3.38157793]
[1739124337013,1.69168742,2637.7,2637.3,3.2078]
[1739124337315,1.69168742,2637.7,2637.4,0.866]
[1739124337513,1.69168742,2637.7,2637.4,1.7796]
[1739124339215,1.69168742,2637.7,2637.4,0.866]
[1739124339418,7.20456033,2637.6,2636.9,3.38157793]
[1739124339616,0.5848,2637.5,2636.9,3.38157793]
[1739124341518,4.11520149,2637.4,2636.9,3.38157793]
[1739124342421,4.11520149,2637.4,2636.8,0.9103]
[1739124342719,3.8029,2637.3,2636.8,0.9103]
[1739124343314,4.10063829,2637.2,2636.7,0.5958]
[1739124343625,1.687,2637.1,2636.7,3.8036]
[1739124344122,4.0298605,2637.0,2636.7,4.7091]
[1739124344520,4.0298605,2637.0,2636.7,1.5013]
[1739124344711,4.0298605,2637.0,2636.6,3.38157793]
[1739124344913,0.5863,2636.9,2636.3,3.38157793]
[1739124346219,0.5863,2636.9,2636.4,3.2078]
[1739124346522,4.36477384,2636.8,2636.3,6.58937793]
[1739124347322,0.5863,2636.9,2636.4,0.592]
[1739124349526,1.687,2637.0,2636.6,6.58937793]
[1739124349827,1.687,2637.0,2636.7,0.5483]
[1739124350020,1.687,2637.0,2636.7,1.1309]
[1739124350921,1.687,2637.0,2636.6,6.58937793]
[1739124351330,1.687,2637.0,2636.6,3.38157793]
[1739124351521,1.687,2637.0,2636.6,6.58937793]
[1739124352527,5.4754,2637.4,2636.9,3.38157793]
[1739124352921,4.06356937,2637.3,2636.9,3.38157793]
[1739124353323,1.687,2637.4,2636.9,3.38157793]
[1739124353717,4.27269822,2637.3,2636.9,3.38157793]
[1739124353925,1.687,2637.4,2636.9,6.58937793]
[1739124354124,6.12748742,2637.7,2637.2,3.38157793]
[1739124354125,3.21348742,2637.7,2637.2,3.38157793]
[1739124354327,3.21348742,2637.7,2637.3,0.5471]
[1739124354531,0.00568742,2637.7,2637.3,0.5471]
[1739124354729,4.29835463,2637.6,2637.3,0.5471]
[1739124355024,4.29835463,2637.6,2637.0,1.1137]
[1739124355025,0.5688,2637.5,2637.0,0.5656]
[1739124355423,4.29835463,2637.4,2637.0,0.5656]
[1739124356222,3.2078,2637.6,2637.2,3.38157793]
[1739124356429,4.8948,2637.6,2637.2,3.38157793]
[1739124357131,4.8948,2637.6,2637.1,0.5679]
[1739124357328,4.7748095,2637.5,2637.1,0.5679]
[1739124358233,4.7748095,2637.5,2636.9,3.38157793]
[1739124358434,3.2078,2637.3,2636.7,4.3866]
[1739124358638,3.2078,2636.9,2636.1,3.38157793]
[1739124358831,1.1914,2636.8,2636.2,0.6055]
[1739124359032,0.5587,2636.7,2636.2,0.6055]
[1739124359331,3.2078,2636.6,2636.2,0.6055]
[1739124360728,4.18241045,2636.5,2636.2,0.6055]
[1739124360934,4.18241045,2636.5,2636.1,3.38157793]
[1739124361329,4.18241045,2636.5,2635.8,3.38157793]
[1739124361830,3.2078,2636.3,2635.7,0.5927]
[1739124362033,2.2579,2636.2,2635.7,0.5927]
[1739124362226,0.5795,2636.1,2635.7,0.5927]
[1739124362734,3.972682,2636.0,2635.7,0.5927]
[1739124363430,2.8317,2636.2,2635.8,3.38157793]
[1739124363431,1.687,2636.2,2635.8,3.38157793]
[1739124363635,1.687,2636.2,2635.7,0.5927]
[1739124363839,0.605,2636.1,2635.7,0.5927]
[1739124364933,1.687,2636.2,2635.9,3.2078]
[1739124365132,0.00568742,2636.4,2636.1,3.38157793]
[1739124365638,0.00568742,2636.4,2636.2,3.7748]
[1739124366725,0.00568742,2636.4,2636.2,0.567]
[1739124367935,0.00568742,2636.4,2636.1,3.38157793]
[1739124368138,0.00568742,2636.4,2636.2,0.5652]
[1739124369533,0.00568742,2636.4,2636.2,3.773]
[1739124369733,4.8948,2637.4,2636.3,0.5701]
[1739124369928,4.8948,2637.4,2636.8,6.58937793]
[1739124369929,1.687,2637.4,2636.8,6.58937793]
[1739124370134,1.687,2637.4,2636.9,0.5684]
[1739124370736,2.8654,2637.7,2637.2,3.38157793]
[1739124370938,0.00568742,2637.4,2637.2,3.38157793]
[1739124372345,4.8948,2638.1,2637.2,9.38157793]
[1739124372644,4.8948,2638.1,2637.8,3.38157793]
[1739124373036,4.27321807,2638.0,2637.6,3.2078]
[1739124373245,4.86601807,2638.0,2637.5,3.38157793]
[1739124373742,4.86601807,2638.0,2637.2,3.38157793]
[1739124373942,3.2078,2637.8,2637.2,3.38157793]
[1739124374139,3.2078,2637.5,2636.9,3.95566535]
[1739124374343,1.1442,2637.4,2636.9,3.95566535]
[1739124374640,4.8725316,2637.4,2636.9,3.38726535]
[1739124375744,1.687,2637.5,2637.1,3.94868984]
[1739124375941,1.687,2637.5,2637.2,0.5539]
[1739124376649,0.5955,2637.7,2637.2,0.5539]
[1739124376845,2.2825,2637.7,2637.3,0.5733]
[1739124378246,7.15961435,2637.6,2637.2,0.5539]
[1739124378548,7.15961435,2637.6,2636.9,3.21348742]
[1739124378739,7.71391435,2637.6,2636.9,3.21348742]
[1739124380943,3.95181435,2637.6,2637.1,3.94868984]
[1739124381155,2.2825,2637.7,2637.2,3.2078]
[1739124381450,2.2825,2637.7,2637.1,3.94868984]
[1739124382652,2.2825,2637.7,2637.2,3.2078]
[1739124383039,1.687,2637.7,2637.3,0.5621]
[1739124383345,4.8948,2638.0,2637.4,0.5807]
[1739124383550,5.4502,2638.0,2637.4,4.52938984]
[1739124386247,0.5554,2638.0,2637.4,4.52938984]
[1739124386447,0.00568742,2638.1,2637.7,3.94868984]
[1739124386744,0.00568742,2638.1,2637.8,0.5983]
[1739124388749,0.00568742,2638.1,2638.0,7.15648984]
[1739124388949,3.2078,2638.8,2638.0,7.15648984]
[1739124389156,3.2078,2638.8,2638.4,3.94868984]
[1739124389351,3.2078,2638.8,2638.5,0.5575]
[1739124389859,3.2078,2639.2,2638.7,3.94868984]
[1739124390050,0.00568742,2638.9,2638.7,7.15648984]
[1739124390248,0.00568742,2638.9,2638.8,0.5984]
[1739124391457,0.00568742,2638.9,2638.7,3.2078]
[1739124391651,0.00568742,2638.9,2638.5,0.5575]
[1739124392361,3.21348742,2638.9,2638.5,0.5575]
[1739124393354,0.00568742,2638.9,2638.5,0.5575]
[1739124393555,0.00568742,2638.9,2638.7,3.94868984]
[1739124394155,3.2078,2639.3,2638.8,0.5661]
[1739124394360,3.2078,2639.3,2639.1,3.94868984]
[1739124394557,4.8938,2639.6,2639.1,3.94868984]
[1739124395354,4.89948742,2639.6,2639.1,3.94868984]
[1739124395860,0.00568742,2639.6,2639.4,3.94868984]
[1739124396260,0.00568742,2639.6,2639.5,0.555]
[1739124397056,0.00568742,2639.6,2639.4,3.94868984]
[1739124400462,0.00568742,2639.6,2639.5,0.577]
[1739124405565,0.00568742,2639.6,2639.5,3.7848]
[1739124405962,4.3624,2640.3,2639.5,3.7848]
[1739124405963,4.3624,2640.3,2639.5,4.3817]
[1739124406169,4.9612,2640.3,2639.5,8.33038984]
[1739124406367,4.9612,2640.3,2639.5,7.73348984]
[1739124406762,4.4056,2640.3,2639.8,3.94868984]
[1739124407071,4.41128742,2640.3,2639.9,0.576]
[1739124407466,4.41128742,2640.3,2639.8,0.00568742]
[1739124407668,4.41128742,2640.3,2639.8,3.39178099]
[1739124414172,4.41128742,2640.3,2640.1,3.38609357]
[1739124415671,1.20348742,2640.3,2640.1,3.38609357]
[1739124418679,0.00568742,2640.3,2640.1,3.38609357]
[1739124420484,0.00568742,2640.3,2640.1,6.59389357]
[1739124420979,4.4012,2640.9,2640.1,6.59389357]
[1739124421180,4.4012,2640.9,2640.6,3.38609357]
[1739124421379,4.4012,2640.9,2640.7,1.1598]
[1739124424380,4.4012,2640.9,2640.4,3.2078]
[1739124424586,0.5889,2640.8,2640.4,3.2078]
[1739124425982,0.5889,2640.8,2640.6,3.38609357]
[1739124426183,4.4012,2640.9,2640.6,3.38609357]
[1739124426383,4.4012,2640.9,2640.7,1.1856]
[1739124429591,3.2078,2640.9,2640.7,1.1856]
[1739124432095,3.2078,2640.9,2640.6,3.38609357]
[1739124432387,3.2078,2640.9,2640.6,4.55949357]
[1739124434991,0.00375394,2641.1,2640.7,3.2078]
[1739124435191,0.00375394,2641.1,2641.0,3.38609357]
[1739124437995,0.00375394,2641.1,2640.7,3.38609357]
[1739124438202,3.2078,2640.8,2640.4,3.38609357]
[1739124439694,3.2078,2640.8,2640.1,3.38609357]
[1739124439995,3.2078,2640.5,2640.1,3.38609357]
[1739124440198,3.2078,2640.5,2639.8,0.00568742]
[1739124440199,3.2078,2640.2,2639.8,3.39178099]
[1739124440890,1.17,2640.4,2640.1,3.38609357]
[1739124441595,7.809,2640.6,2640.2,1.1286]
[1739124441796,7.809,2640.6,2640.5,3.38609357]
[1739124442098,1.17,2641.0,2640.5,3.38609357]
[1739124443991,3.2078,2640.8,2640.5,3.38609357]
[1739124444199,0.6007,2640.7,2640.5,3.38609357]
[1739124447195,1.17,2641.0,2640.5,3.38609357]
[1739124447495,1.17,2641.0,2640.8,3.38609357]
[1739124448099,1.742,2641.0,2640.8,3.38609357]
[1739124452293,1.69175394,2641.1,2640.8,3.38609357]
[1739124453490,0.00375394,2641.1,2640.8,3.38609357]
[1739124453690,0.00375394,2641.1,2640.9,1.1407]
[1739124455300,0.00375394,2641.1,2640.9,0.5844]
[1739124457097,3.21155394,2641.1,2640.8,3.38609357]
[1739124457299,0.5917,2641.0,2640.8,3.38609357]
[1739124457905,0.5917,2641.0,2640.6,0.5889]
[1739124458103,0.5917,2641.0,2640.5,3.38609357]
[1739124458304,3.2078,2640.8,2640.5,3.38609357]
[1739124459507,5.43641014,2640.7,2639.9,3.99229357]
[1739124459700,3.2078,2640.5,2639.9,4.57819357]
[1739124459903,0.5821,2640.4,2639.9,3.38609357]
[1739124460109,4.79761521,2640.4,2639.8,3.21348742]
[1739124462709,3.2078,2639.9,2639.8,0.00568742]
[1739124468913,3.7602,2639.9,2639.8,0.00568742]
[1739124469811,7.71425253,2639.9,2639.8,0.00568742]
[1739124470511,7.77765987,2639.9,2639.8,0.00568742]
[1739124471710,7.71425253,2639.9,2639.8,0.00568742]
[1739124471915,7.77765768,2639.9,2639.8,0.00568742]
[1739124472518,7.71425253,2639.9,2639.8,0.00568742]
[1739124475217,8.24449253,2639.9,2639.8,0.00568742]
[1739124475415,0.53027,2639.8,2639.0,4.50419357]
[1739124475619,3.2078,2639.5,2639.0,4.50419357]
[1739124475817,0.5749,2639.4,2639.0,4.50419357]
[1739124478217,4.89848742,2639.5,2639.0,4.50419357]
[1739124480922,4.1839419,2639.4,2639.0,4.50419357]
[1739124481121,0.5674,2639.3,2639.0,4.50419357]
[1739124481921,3.7752,2639.3,2639.0,4.50419357]
[1739124484226,3.7752,2639.3,2639.0,1.1181]
[1739124484930,3.2078,2639.3,2639.0,4.50419357]
[1739124485124,1.69068742,2639.5,2639.0,4.50419357]
[1739124486828,0.00568742,2639.5,2639.0,4.50419357]
[1739124488825,0.00568742,2639.5,2639.3,3.38609357]
[1739124489329,0.00568742,2639.5,2639.4,0.5878]
[1739124496031,3.2078,2640.1,2639.4,1.1858]
[1739124496335,3.2078,2640.1,2639.9,3.38609357]
[1739124496726,3.2078,2640.1,2640.0,0.6033]
[1739124498944,0.00375394,2640.3,2640.0,0.6033]
[1739124499141,0.00375394,2640.3,2640.2,3.38609357]
[1739124500038,4.329,2641.0,2640.2,12.59389357]
[1739124500233,3.2078,2641.0,2640.7,3.38609357]
[1739124500444,3.2078,2641.0,2640.8,0.5921]
[1739124500742,3.2078,2641.3,2640.8,1.1448]
[1739124500938,3.2078,2641.3,2641.0,3.38609357]
[1739124501541,1.685,2641.5,2641.0,3.38609357]
[1739124501941,4.26183372,2641.4,2641.0,3.38609357]
[1739124503245,4.26183372,2641.4,2641.1,0.5886]
[1739124503645,6.574,2641.6,2641.1,0.5886]
[1739124505146,6.013,2641.6,2641.1,0.5886]
[1739124509153,3.2078,2641.6,2641.1,0.5886]
[1739124516455,3.2078,2641.6,2641.4,3.38609357]
[1739124516661,0.6024,2641.8,2641.4,3.38609357]
[1739124533870,3.8102,2641.8,2641.4,3.38609357]
[1739124537664,3.8102,2641.8,2640.1,0.3792]
[1739124537665,3.2078,2641.5,2640.9,3.21348742]
[1739124537871,3.4103,2641.4,2640.9,3.21348742]
[1739124538265,3.4103,2641.4,2640.9,3.78768742]
[1739124539372,3.2078,2641.2,2640.9,0.00568742]
[1739124539672,0.53009,2640.7,2639.9,3.38609357]
[1739124539874,3.2078,2640.2,2639.9,3.38609357]
[1739124540578,4.3719799,2640.1,2639.9,3.38609357]
[1739124548665,1.683,2640.0,2639.8,0.00568742]
[1739124548874,3.8055,2639.9,2639.8,0.00568742]
[1739124549073,8.02510945,2639.9,2639.8,0.00568742]
[1739124549780,2.8098,2640.0,2639.8,0.00568742]
[1739124549781,2.2338,2640.0,2639.8,0.00568742]
[1739124549981,1.683,2640.0,2639.8,0.00568742]
[1739124552581,0.5539,2640.1,2639.8,0.00568742]
[1739124552778,3.2078,2640.2,2639.9,3.38609357]
[1739124552979,0.00568742,2640.3,2640.0,1.6694]
[1739124553185,3.21348742,2640.3,2640.0,1.6694]
[1739124553483,0.00568742,2640.3,2640.0,1.6694]
[1739124554076,0.00568742,2640.3,2639.9,3.38609357]
[1739124554274,3.2078,2640.0,2639.8,0.00568742]
[1739124557183,0.5845,2640.2,2639.8,0.00568742]
[1739124558991,4.89748742,2640.3,2639.8,0.00568742]
[1739124558992,3.21348742,2640.3,2639.9,3.38609357]
[1739124559183,3.21348742,2640.3,2640.2,3.38609357]
[1739124559592,0.00568742,2640.3,2640.2,3.38609357]
[1739124560081,0.00568742,2640.3,2640.1,3.2078]
[1739124560386,0.00568742,2640.3,2640.2,1.1018]
[1739124560986,0.00568742,2640.3,2640.2,1.652]
[1739124561492,0.00568742,2640.3,2640.2,1.1018]
[1739124566189,0.00568742,2640.3,2640.0,3.38609357]
[1739124566389,0.00568742,2640.3,2640.1,1.1532]
[1739124572400,0.00568742,2640.3,2640.0,3.38609357]
[1739124576702,3.2078,2640.1,2639.8,0.00568742]
[1739124577005,1.1952,2640.0,2639.8,0.00568742]
[1739124577195,0.5626,2639.9,2639.8,0.00568742]
[1739124578309,1.1952,2640.0,2639.8,0.00568742]
[1739124578497,1.1952,2640.0,2639.8,0.56848742]
[1739124579202,4.8908,2640.1,2639.8,0.56848742]
[1739124581810,4.8908,2640.1,2639.8,0.00568742]
[1739124582510,4.03150893,2640.0,2639.8,0.00568742]
[1739124583205,0.53024,2639.9,2639.8,0.00568742]
[1739124583508,0.5939009,2639.9,2639.8,0.00568742]
[1739124583707,4.15695901,2639.9,2639.1,4.51409357]
[1739124583910,3.2078,2639.6,2639.1,4.51409357]
[1739124584205,3.2078,2639.3,2639.1,4.51409357]
[1739124584406,3.2078,2639.3,2638.8,3.38609357]
[1739124584612,0.6047,2639.2,2638.8,3.38609357]
[1739124584910,0.6047,2639.2,2639.1,3.38609357]
[1739124585107,3.2078,2639.3,2639.1,3.38609357]
[1739124586308,2.8059,2639.5,2639.2,1.1736]
[1739124587407,2.8059,2639.5,2639.2,0.6057]
[1739124587612,3.94122319,2639.4,2639.1,3.38609357]
[1739124588111,3.798,2639.3,2639.1,3.38609357]
[1739124592208,3.2078,2639.3,2639.1,3.38609357]
[1739124592413,3.7682,2639.7,2639.1,3.38609357]
[1739124592707,4.07042996,2639.6,2639.1,3.38609357]
[1739124593114,3.2078,2639.4,2639.1,3.38609357]
[1739124593415,0.6038,2639.3,2639.1,3.38609357]
[1739124594912,2.914,2639.6,2639.1,3.38609357]
[1739124595108,3.462,2639.6,2639.1,3.38609357]
[1739124596317,2.914,2639.6,2639.1,3.38609357]
[1739124596515,2.914,2639.6,2639.2,0.5901]
[1739124598313,2.914,2639.6,2639.4,3.38609357]
[1739124598621,2.914,2639.6,2639.5,0.5914]
[1739124598811,2.914,2639.6,2639.5,1.1457]
[1739124599821,0.5595,2639.8,2639.5,1.1457]
[1739124600220,6.0668,2640.0,2639.7,3.38609357]
[1739124600221,4.3828,2640.0,2639.7,3.38609357]
[1739124600427,3.2078,2640.0,2639.7,3.38609357]
[1739124601519,1.202,2640.2,2639.7,3.38609357]
[1739124603825,3.2078,2639.8,2639.5,1.1457]
[1739124604326,8.22872965,2639.7,2639.1,3.38609357]
[1739124604521,3.2078,2639.5,2639.1,3.38609357]
[1739124607134,3.2078,2639.2,2638.8,6.59958099]
[1739124607317,1.1585,2639.1,2638.8,3.39178099]
[1739124609429,3.2078,2639.2,2638.8,3.39178099]
[1739124610331,2.914,2639.4,2638.8,3.39178099]
[1739124611731,7.2803,2639.5,2638.8,3.39178099]
[1739124612031,4.16655407,2639.4,2638.8,3.39178099]
[1739124613331,7.08055407,2639.4,2638.8,0.00568742]
[1739124613548,3.2078,2638.9,2638.8,0.00568742]
[1739124613735,3.2078,2638.9,2638.2,3.38609357]
[1739124613736,4.8908,2638.9,2638.2,3.38609357]
[1739124613942,3.2078,2638.6,2638.2,3.38609357]
[1739124616745,0.00568742,2638.7,2638.5,3.38609357]
[1739124616951,0.00568742,2638.7,2638.6,1.1472]
[1739124626353,0.00568742,2638.7,2638.2,3.38609357]
[1739124626557,0.00568742,2638.7,2638.2,4.53639357]
[1739124627757,0.00568742,2638.7,2638.5,3.38609357]
[1739124630254,0.00568742,2638.7,2638.6,0.5829]
[1739124631256,1.683,2639.4,2638.6,0.5829]
[1739124631555,1.683,2639.4,2639.1,3.38609357]
[1739124631751,1.683,2639.4,2639.2,0.5795]
[1739124632366,6.1218,2639.5,2639.2,0.5795]
[1739124632556,3.2078,2639.5,2639.4,3.38609357]
[1739124634163,3.2078,2639.5,2639.2,0.5795]
[1739124634563,3.2078,2639.5,2639.2,1.149]
[1739124638266,0.00568742,2639.6,2639.2,1.149]
[1739124638464,1.68868742,2639.6,2639.2,1.149]
[1739124640468,3.2078,2639.5,2639.1,3.38609357]
[1739124641374,0.599,2639.4,2639.1,3.38609357]
[1739124641669,0.6039,2639.3,2639.1,3.38609357]
[1739124641863,1.1573,2639.3,2639.1,3.38609357]
[1739124644472,1.1573,2639.3,2638.8,4.52919357]
[1739124644866,8.03120073,2639.2,2638.5,3.38609357]
[1739124645067,3.2078,2638.7,2638.3,1.1467]
[1739124645266,1.7824,2638.6,2638.3,1.1467]
[1739124646969,1.7824,2638.6,2638.2,3.38609357]
[1739124647274,3.2078,2638.4,2638.1,0.00568742]
[1739124649063,4.30314636,2638.3,2638.1,0.00568742]
[1739124649271,1.683,2638.2,2638.1,0.00568742]
[1739124649766,11.94013833,2638.2,2638.1,0.00568742]
[1739124649970,0.53061,2638.1,2637.0,3.38609357]
[1739124650270,3.2078,2637.4,2637.1,0.5526]
[1739124654369,2.28528742,2637.5,2637.3,3.38609357]
[1739124655677,1.68868742,2637.5,2637.3,3.38609357]
[1739124655873,0.00568742,2637.5,2637.3,3.38609357]
[1739124656068,0.00568742,2637.5,2637.4,0.5614]
[1739124656472,2.914,2638.0,2637.4,6.5614]
[1739124656677,2.914,2638.0,2637.6,3.38609357]
[1739124656871,6.6806,2638.0,2637.6,3.38609357]
[1739124657574,6.6806,2638.0,2637.4,0.5614]
[1739124657876,3.2078,2637.7,2637.3,3.38609357]
[1739124658077,3.2078,2637.7,2637.1,0.5526]
[1739124658078,3.2078,2637.4,2637.1,0.5526]
[1739124659779,3.2078,2637.4,2637.0,3.39178099]
[1739124659977,1.1776,2637.3,2637.0,3.39178099]
[1739124660177,1.7448,2637.3,2637.0,0.00568742]
[1739124660480,6.59389357,2637.1,2635.8,3.2078]
[1739124660678,4.27195682,2637.2,2635.8,3.2078]
[1739124660679,3.2078,2636.2,2635.8,3.2078]